[Event "SWE-ch 2019"]
[Site "Eskilstuna"]
[Date "2019.07.07"]
[Round "2.5"]
[White "Wiedenkeller, Michael"]
[Black "Cramling, Pia"]
[Result "1/2-1/2"]
[ECO "E32"]
[WhiteElo "2461"]
[BlackElo "2479"]
[Annotator "ChessBase"]
[PlyCount "93"]
[EventDate "2019.07.06"]
[EventType "tourn"]
[EventCountry "SWE"]
[SourceTitle "playchess.com"]
[Source "ChessBase"]
[SourceQuality "1"]
[TimeControl "40/5400+30:1800+30"]

1. d4 {[%emt 0:00:00]} Nf6 {[%emt 0:01:22]} 2. c4 {[%emt 0:00:02]} e6 {[%emt 0:00:07]} 3. Nc3 {[%emt 0:00:13]} Bb4 {[%emt 0:00:09]} 4. Qc2 {[%emt 0:00:38]} d6 {[%emt 0:04:40]} 5. Bg5 {[%emt 0:00:57]} Nbd7 {[%emt 0:00:35]} 6. e3 {[%emt 0:00:44]} h6 {[%emt 0:07:59]} 7. Bh4 {[%emt 0:02:31]} e5 {[%emt 0:02:26]} 8. Bd3 {[%emt 0:09:08]} Qe7 {[%emt 0:17:33]} 9. O-O-O {[%emt 0:01:14]} Bxc3 {[%emt 0:00:40]} 10. Qxc3 {[%emt 0:05:31]} O-O {[%emt 0:05:49]} 11. Ne2 {[%emt 0:05:52]} Re8 {[%emt 0:00:49]} 12. f4 {[%emt 0:25:59]} exd4 {[%emt 0:14:07]} 13. exd4 {[%emt 0:01:27]} Qe3+ {[%emt 0:02:18]} 14. Qd2 {[%emt 0:03:34]} Qxd2+ {[%emt 0:06:13]} 15. Rxd2 {[%emt 0:07:41]} b6 {[%emt 0:00:20]} 16. Nc3 {[%emt 0:01:39]} Bb7 {[%emt 0:00:26]} 17. d5 {[%emt 0:02:18]} a6 {[%emt 0:01:34]} 18. Re1 {[%emt 0:04:17]} Rxe1+ {[%emt 0:03:54]} 19. Bxe1 {[%emt 0:00:04]} Nc5 {[%emt 0:00:35]} 20. Bc2 {[%emt 0:02:22]} Re8 {[%emt 0:00:15]} 21. Re2 {[%emt 0:03:20]} Rxe2 {[%emt 0:01:22]} 22. Nxe2 {[%emt 0:00:03]} c6 {[%emt 0:06:40]} 23. b4 {[%emt 0:01:52]} Ncd7 {[%emt 0:00:37]} 24. dxc6 {[%emt 0:00:20]} Bxc6 {[%emt 0:00:02]} 25. g3 {[%emt 0:00:28]} d5 {[%emt 0:01:21]} 26. Nd4 {[%emt 0:04:04]} Bb7 {[%emt 0:00:07]} 27. cxd5 {[%emt 0:00:35]} Bxd5 {[%emt 0:01:34]} 28. a4 {[%emt 0:00:18]} Be4 {[%emt 0:02:07]} 29. Bxe4 {[%emt 0:03:04]} Nxe4 {[%emt 0:00:03]} 30. Kc2 {[%emt 0:00:30]} a5 {[%emt 0:13:09]} 31. bxa5 {[%emt 0:02:58]} bxa5 {[%emt 0:00:09]} 32. Nb3 {[%emt 0:00:16]} Nb6 {[%emt 0:02:15]} 33. Kd3 {[%emt 0:00:19]} f5 {[%emt 0:00:17]} 34. Kd4 {[%emt 0:03:29]} Kf7 {[%emt 0:01:05]} 35. Bxa5 {[%emt 0:02:25]} Nxa4 {[%emt 0:00:05]} 36. g4 {[%emt 0:01:45]} g6 {[%emt 0:00:26]} 37. Ke5 {[%emt 0:01:40]} Nac5 {[%emt 0:02:02]} 38. Nxc5 {[%emt 0:00:47]} Nxc5 {[%emt 0:00:04]} 39. gxf5 {[%emt 0:00:30]} Nd3+ {[%emt 0:00:25]} 40. Ke4 {[%emt 0:01:43]} Nc5+ {[%emt 0:00:09]} 41. Kd5 {[%emt 0:30:41]} Nd3 {[%emt 0:30:33]} 42. fxg6+ {[%emt 0:02:29]} Kxg6 {[%emt 0:00:05]} 43. Ke4 {[%emt 0:00:24]} Nc5+ {[%emt 0:00:19]} 44. Ke5 {[%emt 0:00:00]} Nd3+ {[%emt 0:00:00]} 45. Ke4 {[%emt 0:00:00]} Nc5+ {[%emt 0:00:00]} 46. Ke5 {[%emt 0:00:00]} Nd3+ {[%emt 0:00:27]} 47. Ke4 {[%emt 0:00:18]} 1/2-1/2

[Event "SWE-ch 2019"]
[Site "Eskilstuna"]
[Date "2019.07.08"]
[Round "3.1"]
[White "Johansson, Linus"]
[Black "Lokander, Martin"]
[Result "0-1"]
[ECO "A07"]
[WhiteElo "2480"]
[BlackElo "2397"]
[Annotator "ChessBase"]
[PlyCount "105"]
[EventDate "2019.07.06"]
[EventType "tourn"]
[EventCountry "SWE"]
[SourceTitle "playchess.com"]
[Source "ChessBase"]
[SourceQuality "1"]
[TimeControl "40/5400+30:1800+30"]

1. Nf3 {[%emt 0:00:00]} Nf6 {[%emt 0:00:16]} 2. g3 {[%emt 0:00:00]} g6 {[%emt 0:00:36]} 3. Bg2 {[%emt 0:00:00]} Bg7 {[%emt 0:00:02]} 4. O-O {[%emt 0:00:04]} O-O {[%emt 0:00:19]} 5. d3 {[%emt 0:00:04]} d5 {[%emt 0:01:22]} 6. b4 {[%emt 0:00:05]} Ne8 {[%emt 0:05:55]} 7. c3 {[%emt 0:00:13]} e5 {[%emt 0:00:17]} 8. Bb2 {[%emt 0:00:21]} Nd6 {[%emt 0:06:56]} 9. Nbd2 {[%emt 0:01:03]} Be6 {[%emt 0:00:44]} 10. Qc2 {[%emt 0:02:34]} a5 {[%emt 0:07:36]} 11. Nb3 {[%emt 0:04:08]} Nc6 {[%emt 0:04:31]} 12. a3 {[%emt 0:00:54]} Qe7 {[%emt 0:13:27]} 13. Nc5 {[%emt 0:15:03]} e4 {[%emt 0:04:40]} 14. dxe4 {[%emt 0:00:15]} dxe4 {[%emt 0:01:09]} 15. Nd4 {[%emt 0:00:08]} Nxd4 {[%emt 0:00:54]} 16. cxd4 {[%emt 0:00:07]} Bd5 {[%emt 0:00:26]} 17. bxa5 {[%emt 0:02:40]} Rxa5 {[%emt 0:01:37]} 18. Bc3 {[%emt 0:01:09]} Raa8 {[%emt 0:02:24]} 19. Bb4 {[%emt 0:00:14]} Bxd4 {[%emt 0:05:32]} 20. Rad1 {[%emt 0:00:55]} Bxc5 {[%emt 0:01:03]} 21. Qxc5 {[%emt 0:01:23]} Bc6 {[%emt 0:00:16]} 22. Bh3 {[%emt 0:09:11]} Rad8 {[%emt 0:06:19]} 23. Qd4 {[%emt 0:15:59]} Bd7 {[%emt 0:02:58]} 24. Bg2 {[%emt 0:02:39]} Bc6 {[%emt 0:00:36]} 25. Rc1 {[%emt 0:08:35]} Qe6 {[%emt 0:02:36]} 26. Rfd1 {[%emt 0:00:53]} f6 {[%emt 0:02:45]} 27. Qc5 {[%emt 0:05:46]} Rd7 {[%emt 0:04:46]} 28. Qc2 {[%emt 0:03:25]} Rfd8 {[%emt 0:01:15]} 29. h4 {[%emt 0:04:44]} Nf7 {[%emt 0:05:51]} 30. Rxd7 {[%emt 0:01:58]} Rxd7 {[%emt 0:00:05]} 31. Qc5 {[%emt 0:00:44]} Nd6 {[%emt 0:00:29]} 32. e3 {[%emt 0:01:16]} Qd5 {[%emt 0:01:56]} 33. Qxd5+ {[%emt 0:04:15]} Bxd5 {[%emt 0:00:21]} 34. Rd1 {[%emt 0:00:05]} Bc6 {[%emt 0:01:22]} 35. Bh3 {[%emt 0:00:08]} f5 {[%emt 0:03:42]} 36. g4 {[%emt 0:00:11]} Nf7 {[%emt 0:01:13]} 37. Rxd7 {[%emt 0:01:11]} Bxd7 {[%emt 0:00:04]} 38. gxf5 {[%emt 0:00:15]} Ne5 {[%emt 0:00:45]} 39. Kh2 {[%emt 0:01:14]} Bxf5 {[%emt 0:01:37]} 40. Bf1 {[%emt 0:00:23]} Kf7 {[%emt 0:04:46]} 41. Be2 {[%emt 0:43:18]} Bg4 {[%emt 0:33:11]} 42. Bc3 {[%emt 0:00:00]} Bxe2 {[%emt 0:00:00]} 43. Bxe5 {[%emt 0:00:00]} c6 {[%emt 0:00:00]} 44. Kg3 {[%emt 0:00:00]} Ke6 {[%emt 0:00:00]} 45. Kf4 {[%emt 0:00:00]} Kd5 {[%emt 0:00:00]} 46. Bf6 {[%emt 0:00:00]} b5 {[%emt 0:00:00]} 47. Kg5 {[%emt 0:00:00]} h5 {[%emt 0:00:00]} 48. Kxg6 {[%emt 0:00:00]} c5 {[%emt 0:00:00]} 49. Kf7 {[%emt 0:00:00]} b4 {[%emt 0:00:00]} 50. a4 {[%emt 0:00:00]} c4 {[%emt 0:00:00]} 51. a5 {[%emt 0:00:00]} c3 {[%emt 0:00:00]} 52. Bd4 {[%emt 0:00:00]} Bb5 {[%emt 0:00:00]} 53. Kg6 {[%emt 0:00:00] Ke5} 0-1

[Event "SWE-ch 2019"]
[Site "Eskilstuna"]
[Date "2019.07.08"]
[Round "3.2"]
[White "Smith, Axel"]
[Black "Sagit, Rauan"]
[Result "1/2-1/2"]
[ECO "D61"]
[WhiteElo "2469"]
[BlackElo "2429"]
[Annotator "ChessBase"]
[PlyCount "86"]
[EventDate "2019.07.06"]
[EventType "tourn"]
[EventCountry "SWE"]
[SourceTitle "playchess.com"]
[Source "ChessBase"]
[SourceQuality "1"]
[TimeControl "40/5400+30:1800+30"]

1. d4 {[%emt 0:00:00]} d5 {[%emt 0:00:00]} 2. c4 {[%emt 0:00:00]} e6 {[%emt 0:00:10]} 3. Nc3 {[%emt 0:01:02]} a6 {[%emt 0:00:13]} 4. cxd5 {[%emt 0:02:09]} exd5 {[%emt 0:00:48]} 5. Nf3 {[%emt 0:00:09]} Nf6 {[%emt 0:00:28]} 6. Bg5 {[%emt 0:04:12]} Be7 {[%emt 0:00:25]} 7. e3 {[%emt 0:00:16]} h6 {[%emt 0:01:57]} 8. Bh4 {[%emt 0:00:44]} O-O {[%emt 0:01:34]} 9. Bd3 {[%emt 0:00:02]} Re8 {[%emt 0:00:58]} 10. O-O {[%emt 0:08:45]} Nbd7 {[%emt 0:00:59]} 11. Qc2 {[%emt 0:10:08]} c6 {[%emt 0:00:40]} 12. Rad1 {[%emt 0:02:42]} Ne4 {[%emt 0:04:14]} 13. Bxe7 {[%emt 0:02:05]} Qxe7 {[%emt 0:00:33]} 14. Rfe1 {[%emt 0:12:13]} Ndf6 {[%emt 0:13:24]} 15. Ne5 {[%emt 0:01:36]} Bf5 {[%emt 0:08:05]} 16. f3 {[%emt 0:12:07]} Nxc3 {[%emt 0:02:31]} 17. bxc3 {[%emt 0:00:01]} Bxd3 {[%emt 0:00:28]} 18. Qxd3 {[%emt 0:00:01]} Nd7 {[%emt 0:00:48]} 19. Ng4 {[%emt 0:02:22]} Nf6 {[%emt 0:03:50]} 20. Ne5 {[%emt 0:00:01]} Nd7 {[%emt 0:01:23]} 21. Ng4 {[%emt 0:00:02]} Nf6 {[%emt 0:00:35]} 22. Nf2 {[%emt 0:00:55]} Qa3 {[%emt 0:03:17]} 23. Qd2 {[%emt 0:03:36]} c5 {[%emt 0:02:35]} 24. Nd3 {[%emt 0:09:18]} cxd4 {[%emt 0:00:42]} 25. cxd4 {[%emt 0:00:11]} Rac8 {[%emt 0:00:35]} 26. Rc1 {[%emt 0:00:37]} Qe7 {[%emt 0:01:29]} 27. Rxc8 {[%emt 0:09:47]} Rxc8 {[%emt 0:02:10]} 28. Rc1 {[%emt 0:00:02]} Rc7 {[%emt 0:03:32]} 29. Kf2 {[%emt 0:04:08]} Qd6 {[%emt 0:02:00]} 30. Ne5 {[%emt 0:01:48]} Nd7 {[%emt 0:01:54]} 31. Rxc7 {[%emt 0:00:13]} Qxc7 {[%emt 0:00:08]} 32. Nxd7 {[%emt 0:00:06]} Qxd7 {[%emt 0:00:08]} 33. Qc3 {[%emt 0:00:48]} g6 {[%emt 0:01:19]} 34. Qc5 {[%emt 0:01:21]} Qd8 {[%emt 0:02:29]} 35. a4 {[%emt 0:03:26]} Kg7 {[%emt 0:12:29]} 36. h3 {[%emt 0:00:17]} Qh4+ {[%emt 0:05:41]} 37. Kf1 {[%emt 0:00:59]} Qg5 {[%emt 0:02:26]} 38. Kf2 {[%emt 0:00:45]} Qh4+ {[%emt 0:00:51]} 39. Kf1 {[%emt 0:06:16]} Qg5 {[%emt 0:00:35]} 40. e4 {[%emt 0:02:22]} b6 {[%emt 0:06:38]} 41. h4 {[%emt 0:17:12]} Qd8 {[%emt 0:03:39]} 42. Qc6 {[%emt 0:01:40]} dxe4 {[%emt 0:01:56]} 43. Qxe4 {[%emt 0:00:02]} Qf6 {[%emt 0:08:30]} 1/2-1/2

[Event "SWE-ch 2019"]
[Site "Eskilstuna"]
[Date "2019.07.08"]
[Round "3.3"]
[White "Blomqvist, Erik"]
[Black "Hector, Jonny"]
[Result "1-0"]
[ECO "C77"]
[WhiteElo "2492"]
[BlackElo "2487"]
[Annotator "ChessBase"]
[PlyCount "107"]
[EventDate "2019.07.06"]
[EventType "tourn"]
[EventCountry "SWE"]
[SourceTitle "playchess.com"]
[Source "ChessBase"]
[SourceQuality "1"]
[TimeControl "40/5400+30:1800+30"]

1. e4 {[%emt 0:00:00]} e5 {[%emt 0:00:00]} 2. Nf3 {[%emt 0:00:00]} Nc6 {[%emt 0:00:02]} 3. Bb5 {[%emt 0:00:06]} a6 {[%emt 0:00:39]} 4. Ba4 {[%emt 0:00:20]} Nf6 {[%emt 0:00:26]} 5. d3 {[%emt 0:00:21]} Bc5 {[%emt 0:00:54]} 6. c3 {[%emt 0:00:37]} d6 {[%emt 0:02:18]} 7. h3 {[%emt 0:00:37]} Bd7 {[%emt 0:07:39]} 8. Nbd2 {[%emt 0:01:53]} Qe7 {[%emt 0:02:42]} 9. Nf1 {[%emt 0:00:41]} d5 {[%emt 0:01:15]} 10. Ng3 {[%emt 0:02:15]} dxe4 {[%emt 0:02:53]} 11. dxe4 {[%emt 0:01:09]} O-O-O {[%emt 0:01:06]} 12. Qe2 {[%emt 0:03:10]} Ne8 {[%emt 0:09:14]} 13. Nf5 {[%emt 0:21:45]} Bxf5 {[%emt 0:04:51]} 14. exf5 {[%emt 0:00:44]} e4 {[%emt 0:11:20]} 15. Bxc6 {[%emt 0:02:53]} exf3 {[%emt 0:00:11]} 16. Qxe7 {[%emt 0:03:11]} Bxe7 {[%emt 0:00:15]} 17. Bxf3 {[%emt 0:00:10]} Nd6 {[%emt 0:00:48]} 18. g4 {[%emt 0:02:30]} Rhe8 {[%emt 0:04:06]} 19. O-O {[%emt 0:00:30]} Bf6 {[%emt 0:01:44]} 20. g5 {[%emt 0:07:48]} Be7 {[%emt 0:00:31]} 21. Bg4 {[%emt 0:03:01]} f6 {[%emt 0:01:15]} 22. Re1 {[%emt 0:02:14]} Kb8 {[%emt 0:00:28]} 23. Bh5 {[%emt 0:01:58]} fxg5 {[%emt 0:08:16]} 24. Bxe8 {[%emt 0:00:31]} Rxe8 {[%emt 0:00:07]} 25. Be3 {[%emt 0:06:30]} b6 {[%emt 0:05:24]} 26. Rad1 {[%emt 0:02:37]} Bf6 {[%emt 0:01:20]} 27. Rd5 {[%emt 0:03:58]} Kb7 {[%emt 0:04:42]} 28. Kf1 {[%emt 0:06:12]} Kc6 {[%emt 0:01:36]} 29. Red1 {[%emt 0:00:18]} Rf8 {[%emt 0:06:18]} 30. a4 {[%emt 0:02:59]} Be7 {[%emt 0:01:30]} 31. Re5 {[%emt 0:07:45]} Nxf5 {[%emt 0:01:53]} 32. Re6+ {[%emt 0:00:05]} Kb7 {[%emt 0:02:33]} 33. Ke2 {[%emt 0:01:14]} Bf6 {[%emt 0:04:22]} 34. Rd7 {[%emt 0:02:51]} Kc8 {[%emt 0:00:28]} 35. Rd5 {[%emt 0:00:20]} Ne7 {[%emt 0:06:03]} 36. Rd1 {[%emt 0:01:50]} Kb7 {[%emt 0:02:24]} 37. a5 {[%emt 0:04:45]} bxa5 {[%emt 0:01:52]} 38. Ra1 {[%emt 0:01:01]} Nd5 {[%emt 0:03:51]} 39. Rxa5 {[%emt 0:00:28]} c6 {[%emt 0:00:31]} 40. Ra3 {[%emt 0:02:42]} Bd8 {[%emt 0:01:24]} 41. Rb3+ {[%emt 0:11:30]} Kc7 {[%emt 0:00:36]} 42. Re4 {[%emt 0:01:13]} a5 {[%emt 0:02:59]} 43. c4 {[%emt 0:02:15]} Nxe3 {[%emt 0:04:06]} 44. fxe3 {[%emt 0:07:09]} Bf6 {[%emt 0:04:53]} 45. c5 {[%emt 0:00:33]} Bd8 {[%emt 0:04:14]} 46. Ra3 {[%emt 0:02:05]} Kb7 {[%emt 0:07:23]} 47. Rd3 {[%emt 0:03:36]} Ka6 {[%emt 0:03:35]} 48. Rb3 {[%emt 0:06:17]} Rf5 {[%emt 0:03:20]} 49. Re8 {[%emt 0:00:13]} a4 {[%emt 0:02:44]} 50. Ra3 {[%emt 0:01:04]} Rd5 {[%emt 0:01:08]} 51. Rxa4+ {[%emt 0:00:40]} Kb5 {[%emt 0:00:10]} 52. Rd4 {[%emt 0:00:15]} Bf6 {[%emt 0:00:34]} 53. Rxd5 {[%emt 0:00:06]} cxd5 {[%emt 0:00:07]} 54. b4 {[%emt 0:00:09]} 1-0

[Event "SWE-ch 2019"]
[Site "Eskilstuna"]
[Date "2019.07.08"]
[Round "3.4"]
[White "Kucuksari, Kaan"]
[Black "Wiedenkeller, Michael"]
[Result "0-1"]
[ECO "A47"]
[WhiteElo "2310"]
[BlackElo "2461"]
[Annotator "ChessBase"]
[PlyCount "204"]
[EventDate "2019.07.06"]
[EventType "tourn"]
[EventCountry "SWE"]
[SourceTitle "playchess.com"]
[Source "ChessBase"]
[SourceQuality "1"]
[TimeControl "40/5400+30:1800+30"]

1. d4 {[%emt 0:00:00]} Nf6 {[%emt 0:00:05]} 2. Nf3 {[%emt 0:00:00]} d5 {[%emt 0:00:25]} 3. e3 {[%emt 0:00:00]} e6 {[%emt 0:03:28]} 4. Bd3 {[%emt 0:00:00]} c5 {[%emt 0:01:11]} 5. b3 {[%emt 0:00:00]} Be7 {[%emt 0:03:59]} 6. O-O {[%emt 0:00:00]} O-O {[%emt 0:00:34]} 7. Bb2 {[%emt 0:00:00]} b6 {[%emt 0:01:50]} 8. Nbd2 {[%emt 0:00:01]} Bb7 {[%emt 0:01:10]} 9. dxc5 {[%emt 0:00:56]} Bxc5 {[%emt 0:07:48]} 10. c4 {[%emt 0:00:01]} Nbd7 {[%emt 0:01:05]} 11. cxd5 {[%emt 0:00:47]} Nxd5 {[%emt 0:04:07]} 12. Rc1 {[%emt 0:02:46]} Be7 {[%emt 0:06:32]} 13. Nc4 {[%emt 0:08:47]} Bf6 {[%emt 0:18:28]} 14. Ba3 {[%emt 0:06:54]} Nc5 {[%emt 0:02:37]} 15. Na5 {[%emt 0:04:34]} bxa5 {[%emt 0:17:08]} 16. Bxc5 {[%emt 0:00:33]} Be7 {[%emt 0:00:08]} 17. Nd4 {[%emt 0:14:57]} Rc8 {[%emt 0:03:32]} 18. Bxa7 {[%emt 0:05:06]} Rxc1 {[%emt 0:00:28]} 19. Qxc1 {[%emt 0:00:08]} Nb4 {[%emt 0:00:17]} 20. Bb1 {[%emt 0:05:46]} Qa8 {[%emt 0:05:36]} 21. Qc7 {[%emt 0:02:54]} Bxg2 {[%emt 0:01:10]} 22. Rc1 {[%emt 0:06:50]} Bf6 {[%emt 0:06:19]} 23. Bb6 {[%emt 0:09:55]} Be4 {[%emt 0:03:24]} 24. Bxa5 {[%emt 0:06:48]} Bh1 {[%emt 0:01:23]} 25. e4 {[%emt 0:03:10]} Nxa2 {[%emt 0:01:57]} 26. Rc4 {[%emt 0:06:46]} Bd8 {[%emt 0:02:36]} 27. Qe5 {[%emt 0:05:30]} Bxa5 {[%emt 0:01:02]} 28. Nc6 {[%emt 0:03:04]} Bc3 {[%emt 0:01:13]} 29. Qg3 {[%emt 0:01:31]} Bb2 {[%emt 0:02:06]} 30. Kxh1 {[%emt 0:00:58]} Nc3 {[%emt 0:00:43]} 31. Rxc3 {[%emt 0:01:06]} Qa1 {[%emt 0:00:14]} 32. Rd3 {[%emt 0:04:28]} Qxb1+ {[%emt 0:00:05]} 33. Kg2 {[%emt 0:00:01]} Ba3 {[%emt 0:01:07]} 34. Qf3 {[%emt 0:01:38]} Qc1 {[%emt 0:00:40]} 35. Rc3 {[%emt 0:00:11]} Qg5+ {[%emt 0:00:18]} 36. Qg3 {[%emt 0:00:05]} Qb5 {[%emt 0:01:11]} 37. Rc4 {[%emt 0:00:55]} h6 {[%emt 0:01:00]} 38. Qc3 {[%emt 0:01:10]} Qg5+ {[%emt 0:00:17]} 39. Qg3 {[%emt 0:00:07]} Qb5 {[%emt 0:00:10]} 40. Nd4 {[%emt 0:00:25]} Qb7 {[%emt 0:00:25]} 41. Qf3 {[%emt 0:02:48]} Bb2 {[%emt 0:07:39]} 42. Nc6 {[%emt 0:02:31]} Qb5 {[%emt 0:00:42]} 43. Qe3 {[%emt 0:02:43]} Ba3 {[%emt 0:01:28]} 44. h3 {[%emt 0:06:02]} Kh8 {[%emt 0:00:45]} 45. h4 {[%emt 0:07:42]} Ra8 {[%emt 0:04:20]} 46. Qf3 {[%emt 0:01:16]} Kg8 {[%emt 0:04:05]} 47. e5 {[%emt 0:06:03]} Ra6 {[%emt 0:07:01]} 48. h5 {[%emt 0:02:51]} Bf8 {[%emt 0:00:48]} 49. Nd8 {[%emt 0:01:39]} Ra7 {[%emt 0:04:24]} 50. Rf4 {[%emt 0:00:31]} Qe8 {[%emt 0:03:17]} 51. Nc6 {[%emt 0:00:03]} Ra6 {[%emt 0:00:44]} 52. Rc4 {[%emt 0:00:15]} Ra3 {[%emt 0:00:28]} 53. Rd4 {[%emt 0:01:04]} Ra6 {[%emt 0:00:30]} 54. Rc4 {[%emt 0:00:12]} Ra3 {[%emt 0:00:23]} 55. Kh2 {[%emt 0:00:29]} Qa8 {[%emt 0:00:42]} 56. Qd3 {[%emt 0:01:55]} Qb7 {[%emt 0:00:50]} 57. Rc3 {[%emt 0:00:45]} Qb6 {[%emt 0:00:51]} 58. Kg2 {[%emt 0:00:44]} Ra2 {[%emt 0:00:44]} 59. Qe3 {[%emt 0:00:35]} Qb5 {[%emt 0:00:50]} 60. Qd3 {[%emt 0:00:16]} Qb6 {[%emt 0:00:35]} 61. Qd4 {[%emt 0:00:31]} Qb7 {[%emt 0:00:35]} 62. Qd8 {[%emt 0:00:39]} Ra8 {[%emt 0:00:38]} 63. Qd4 {[%emt 0:00:18]} Qa6 {[%emt 0:00:34]} 64. Qc4 {[%emt 0:00:12]} Qa1 {[%emt 0:00:09]} 65. Rf3 {[%emt 0:00:30]} Qd1 {[%emt 0:00:54]} 66. Qf4 {[%emt 0:01:02]} Qd7 {[%emt 0:00:02]} 67. Rc3 {[%emt 0:00:28]} Ra6 {[%emt 0:00:27]} 68. Qd4 {[%emt 0:00:31]} Qb7 {[%emt 0:00:16]} 69. Qc4 {[%emt 0:00:23]} Rb6 {[%emt 0:00:09]} 70. Kh2 {[%emt 0:00:27]} Rb5 {[%emt 0:00:24]} 71. Qe4 {[%emt 0:00:40]} Rxb3 {[%emt 0:00:37]} 72. Rxb3 {[%emt 0:00:30]} Qxb3 {[%emt 0:00:01]} 73. Kg2 {[%emt 0:00:13]} Qd1 {[%emt 0:00:10]} 74. Qf3 {[%emt 0:00:10]} Qc1 {[%emt 0:00:16]} 75. Kh2 {[%emt 0:00:38]} Qg5 {[%emt 0:00:13]} 76. Kh3 {[%emt 0:00:12]} Bc5 {[%emt 0:00:09]} 77. Kh2 {[%emt 0:00:27]} Bd4 {[%emt 0:00:37]} 78. Qe2 {[%emt 0:00:44]} Bc3 {[%emt 0:01:16]} 79. Kh3 {[%emt 0:00:21]} Qf4 {[%emt 0:01:12]} 80. Qd3 {[%emt 0:01:15]} Qd2 {[%emt 0:01:36]} 81. Qxd2 {[%emt 0:00:31]} Bxd2 {[%emt 0:00:01]} 82. Kg4 {[%emt 0:00:16]} Bc3 {[%emt 0:00:24]} 83. f4 {[%emt 0:00:16]} Kf8 {[%emt 0:00:06]} 84. Nb8 {[%emt 0:00:59]} Ke7 {[%emt 0:00:43]} 85. Kf3 {[%emt 0:00:11]} g6 {[%emt 0:00:50]} 86. Kg4 {[%emt 0:00:26]} Bd2 {[%emt 0:00:55]} 87. Nc6+ {[%emt 0:00:19]} Kd7 {[%emt 0:00:09]} 88. hxg6 {[%emt 0:00:02]} fxg6 {[%emt 0:00:14]} 89. Nd4 {[%emt 0:00:00]} Bb4 {[%emt 0:00:25]} 90. Nf3 {[%emt 0:01:56]} Be7 {[%emt 0:00:37]} 91. Nd4 {[%emt 0:00:00]} h5+ {[%emt 0:00:40]} 92. Kg3 {[%emt 0:00:15]} Bd8 {[%emt 0:00:23]} 93. Kf3 {[%emt 0:00:49]} Bb6 {[%emt 0:00:08]} 94. Nb5 {[%emt 0:00:12]} Kc6 {[%emt 0:00:13]} 95. Nd6 {[%emt 0:00:09]} Bd8 {[%emt 0:01:11]} 96. Ke4 {[%emt 0:01:20]} Be7 {[%emt 0:00:52]} 97. Nf7 {[%emt 0:00:24]} Kd7 {[%emt 0:00:45]} 98. Nh8 {[%emt 0:00:43]} g5 {[%emt 0:00:01]} 99. fxg5 {[%emt 0:00:45]} Bxg5 {[%emt 0:00:34]} 100. Ng6 {[%emt 0:00:01]} Ke8 {[%emt 0:00:18]} 101. Nf4 {[%emt 0:00:13]} Bxf4 {[%emt 0:00:07]} 102. Kxf4 {[%emt 0:00:01]} Kd7 {[%emt 0:00:05]} 0-1

[Event "SWE-ch 2019"]
[Site "Eskilstuna"]
[Date "2019.07.08"]
[Round "3.5"]
[White "Cramling, Pia"]
[Black "Hillarp Persson, Tiger"]
[Result "1/2-1/2"]
[ECO "E11"]
[WhiteElo "2479"]
[BlackElo "2562"]
[Annotator "ChessBase"]
[PlyCount "145"]
[EventDate "2019.07.06"]
[EventType "tourn"]
[EventCountry "SWE"]
[SourceTitle "playchess.com"]
[Source "ChessBase"]
[SourceQuality "1"]
[TimeControl "40/5400+30:1800+30"]

1. Nf3 {[%emt 0:00:00]} e6 {[%emt 0:03:03]} 2. c4 {[%emt 0:00:54]} d5 {[%emt 0:00:34]} 3. d4 {[%emt 0:07:22]} Nf6 {[%emt 0:00:11]} 4. g3 {[%emt 0:00:51]} Bb4+ {[%emt 0:02:06]} 5. Bd2 {[%emt 0:00:16]} Be7 {[%emt 0:02:47]} 6. Bg2 {[%emt 0:00:51]} O-O {[%emt 0:00:11]} 7. O-O {[%emt 0:00:13]} c6 {[%emt 0:01:54]} 8. Qc2 {[%emt 0:00:31]} Nbd7 {[%emt 0:01:22]} 9. Rc1 {[%emt 0:04:58]} a5 {[%emt 0:10:12]} 10. b3 {[%emt 0:00:53]} Ne4 {[%emt 0:15:02]} 11. Be1 {[%emt 0:02:20]} f5 {[%emt 0:01:55]} 12. Nc3 {[%emt 0:01:05]} Bd6 {[%emt 0:07:17]} 13. Rd1 {[%emt 0:10:21]} Qe7 {[%emt 0:01:15]} 14. Nd2 {[%emt 0:08:26]} Nxc3 {[%emt 0:06:43]} 15. Qxc3 {[%emt 0:00:06]} b6 {[%emt 0:00:54]} 16. cxd5 {[%emt 0:08:16]} cxd5 {[%emt 0:00:17]} 17. Nc4 {[%emt 0:00:31]} Ba6 {[%emt 0:01:38]} 18. Nxd6 {[%emt 0:01:42]} Qxd6 {[%emt 0:00:13]} 19. Qe3 {[%emt 0:02:57]} Rfc8 {[%emt 0:01:52]} 20. Rdc1 {[%emt 0:01:24]} Kf7 {[%emt 0:05:04]} 21. Bd2 {[%emt 0:10:35]} h6 {[%emt 0:10:23]} 22. a4 {[%emt 0:10:04]} Nf6 {[%emt 0:06:04]} 23. f3 {[%emt 0:01:43]} Qd7 {[%emt 0:18:48]} 24. Bf1 {[%emt 0:03:51]} Rxc1 {[%emt 0:00:22]} 25. Rxc1 {[%emt 0:00:07]} Rc8 {[%emt 0:00:05]} 26. Qe5 {[%emt 0:02:09]} Rxc1 {[%emt 0:01:40]} 27. Bxc1 {[%emt 0:00:05]} Qc6 {[%emt 0:00:09]} 28. Bf4 {[%emt 0:01:13]} Ne8 {[%emt 0:00:44]} 29. Qb8 {[%emt 0:01:10]} Ke7 {[%emt 0:01:00]} 30. h4 {[%emt 0:03:23]} Qb7 {[%emt 0:00:30]} 31. Qxb7+ {[%emt 0:03:30]} Bxb7 {[%emt 0:00:07]} 32. e3 {[%emt 0:01:05]} Kd7 {[%emt 0:00:55]} 33. Be5 {[%emt 0:03:49]} g5 {[%emt 0:00:40]} 34. Kg2 {[%emt 0:05:17]} Nd6 {[%emt 0:00:20]} 35. Bg7 {[%emt 0:01:38]} Nf7 {[%emt 0:00:16]} 36. Kf2 {[%emt 0:00:45]} Bc6 {[%emt 0:00:41]} 37. h5 {[%emt 0:01:02]} Ke7 {[%emt 0:00:28]} 38. Bd3 {[%emt 0:00:49]} Be8 {[%emt 0:00:36]} 39. g4 {[%emt 0:00:53]} Bd7 {[%emt 0:00:20]} 40. Kg3 {[%emt 0:00:51]} fxg4 {[%emt 0:00:36]} 41. fxg4 {[%emt 0:30:51]} Bc6 {[%emt 0:02:39]} 42. Kf2 {[%emt 0:00:00]} Bd7 {[%emt 0:01:14]} 43. Be2 {[%emt 0:00:00]} Bc6 {[%emt 0:01:01]} 44. Ke1 {[%emt 0:00:00]} Bd7 {[%emt 0:02:42]} 45. Kd2 {[%emt 0:00:00]} Bc6 {[%emt 0:00:40]} 46. Kc2 {[%emt 0:00:00]} Bd7 {[%emt 0:07:37]} 47. Kb2 {[%emt 0:00:00]} Bc6 {[%emt 0:02:18]} 48. Ka3 {[%emt 0:00:00]} Be8 {[%emt 0:01:59]} 49. b4 {[%emt 0:00:00]} axb4+ {[%emt 0:00:08]} 50. Kxb4 {[%emt 0:00:00]} Bd7 {[%emt 0:00:35]} 51. Bd1 {[%emt 0:00:00]} Bc6 {[%emt 0:00:34]} 52. Bc2 {[%emt 0:03:10]} Bd7 {[%emt 0:00:06]} 53. Bd1 {[%emt 0:01:15]} Bc6 {[%emt 0:01:42]} 54. Be2 {[%emt 0:00:18]} Bd7 {[%emt 0:00:14]} 55. Ka3 {[%emt 0:00:30]} Bc6 {[%emt 0:00:21]} 56. Kb3 {[%emt 0:00:10]} Bd7 {[%emt 0:00:11]} 57. Kb4 {[%emt 0:01:12]} Bc8 {[%emt 0:00:29]} 58. Kc3 {[%emt 0:01:09]} Bd7 {[%emt 0:00:13]} 59. Bd1 {[%emt 0:00:05]} Bc8 {[%emt 0:00:10]} 60. Kd2 {[%emt 0:00:11]} Ba6 {[%emt 0:03:31]} 61. Bc2 {[%emt 0:00:38]} Bc8 {[%emt 0:01:02]} 62. e4 {[%emt 0:01:54]} dxe4 {[%emt 0:00:30]} 63. Bxe4 {[%emt 0:00:04]} Bd7 {[%emt 0:00:14]} 64. Bc2 {[%emt 0:00:12]} Bc6 {[%emt 0:00:22]} 65. Bd1 {[%emt 0:00:14]} Bd5 {[%emt 0:03:57]} 66. Kc3 {[%emt 0:00:20]} Bc6 {[%emt 0:01:13]} 67. Kb4 {[%emt 0:00:08]} Bd7 {[%emt 0:01:37]} 68. d5 {[%emt 0:01:37]} e5 {[%emt 0:00:08]} 69. Bf3 {[%emt 0:00:06]} Be8 {[%emt 0:00:40]} 70. Be4 {[%emt 0:01:39]} Bd7 {[%emt 0:00:14]} 71. Bf3 {[%emt 0:00:39]} Be8 {[%emt 0:00:12]} 72. Be4 {[%emt 0:00:56]} Bd7 {[%emt 0:00:06]} 73. Bf3 {[%emt 0:00:36]} 1/2-1/2